[Event "Betsys MČR v online bleskovém šachu 2021"]
[Site "Chess.com"]
[Date "2021.04.17"]
[Round "10"]
[White "patrikvagner"]
[Black "pburak"]
[Result "1-0"]
[WhiteElo "1755"]
[BlackElo "1309"]
[TimeControl "180+1"]
[EndTime "10:41:08 PDT"]
[Termination "Uživatel patrikvagner zvítězil na čas"]

1. d4 {[%clk 0:03:00.9]} 1... Nf6 {[%clk 0:02:58.4]} 2. c4 {[%clk 0:03:00.9]}
2... e6 {[%clk 0:02:57.8]} 3. Nc3 {[%clk 0:03:01]} 3... Bb4 {[%clk 0:02:57.2]}
4. Qc2 {[%clk 0:02:59.8]} 4... O-O {[%clk 0:02:54.7]} 5. e4 {[%clk 0:02:59.5]}
5... d6 {[%clk 0:02:51.5]} 6. Nf3 {[%clk 0:02:59.5]} 6... Nc6 {[%clk 0:02:45.4]}
7. Be3 {[%clk 0:02:54.3]} 7... e5 {[%clk 0:02:38.7]} 8. d5 {[%clk 0:02:53.4]}
8... Nd4 {[%clk 0:02:37.6]} 9. Bxd4 {[%clk 0:02:53.1]} 9... exd4 {[%clk
0:02:36.7]} 10. Nxd4 {[%clk 0:02:53.3]} 10... Re8 {[%clk 0:02:27.7]} 11. f3
{[%clk 0:02:52.6]} 11... Nh5 {[%clk 0:02:15.9]} 12. g3 {[%clk 0:02:46.4]} 12...
Qg5 {[%clk 0:02:04.1]} 13. Bg2 {[%clk 0:02:28.5]} 13... Nxg3 {[%clk 0:01:59.7]}
14. hxg3 {[%clk 0:02:26.4]} 14... Qxg3+ {[%clk 0:01:59]} 15. Qf2 {[%clk
0:02:18.2]} 15... Qe5 {[%clk 0:01:49.7]} 16. O-O-O {[%clk 0:02:15.7]} 16... c6
{[%clk 0:01:39.1]} 17. Qh4 {[%clk 0:02:14.7]} 17... h6 {[%clk 0:01:35.4]} 18. a3
{[%clk 0:02:00.9]} 18... Ba5 {[%clk 0:01:32.6]} 19. b4 {[%clk 0:01:59]} 19...
Bb6 {[%clk 0:01:30.4]} 20. Nde2 {[%clk 0:01:56.7]} 20... cxd5 {[%clk 0:01:26.1]}
21. cxd5 {[%clk 0:01:48]} 21... Be3+ {[%clk 0:01:16.8]} 22. Kc2 {[%clk
0:01:46.8]} 22... Bd7 {[%clk 0:01:13.7]} 23. Qg3 {[%clk 0:01:45.6]} 23... Qf6
{[%clk 0:01:09.4]} 24. Bh3 {[%clk 0:01:36.3]} 24... Rac8 {[%clk 0:01:06.7]} 25.
Rd3 {[%clk 0:01:31.7]} 25... Bb5 {[%clk 0:01:01.6]} 26. Rxe3 {[%clk 0:01:28.5]}
26... Bxe2 {[%clk 0:00:56.9]} 27. Bxc8 {[%clk 0:01:25.7]} 27... Rxc8 {[%clk
0:00:55.6]} 28. Qe1 {[%clk 0:01:19.8]} 28... Bb5 {[%clk 0:00:47.2]} 29. Kb1
{[%clk 0:01:09.7]} 29... Qd4 {[%clk 0:00:40]} 30. Qc1 {[%clk 0:00:57.5]} 30...
Bd3+ {[%clk 0:00:34]} 31. Kb2 {[%clk 0:00:53.6]} 31... Rxc3 {[%clk 0:00:27.8]}
32. Qxc3 {[%clk 0:00:52.4]} 32... Qxe3 {[%clk 0:00:27.3]} 33. Rc1 {[%clk
0:00:51.1]} 33... Qe2+ {[%clk 0:00:25]} 34. Kb3 {[%clk 0:00:48.7]} 34... Qxf3
{[%clk 0:00:20.7]} 35. Qc8+ {[%clk 0:00:48]} 35... Kh7 {[%clk 0:00:19.9]} 36.
Qf5+ {[%clk 0:00:47.8]} 36... Qxf5 {[%clk 0:00:15.5]} 37. exf5 {[%clk
0:00:47.8]} 37... Bxf5 {[%clk 0:00:15.6]} 38. Rc7 {[%clk 0:00:47.6]} 38... Be4
{[%clk 0:00:12.4]} 39. Rxb7 {[%clk 0:00:45]} 39... Bxd5+ {[%clk 0:00:11.8]} 40.
Ka4 {[%clk 0:00:44.7]} 40... h5 {[%clk 0:00:09.1]} 41. Re7 {[%clk 0:00:42.3]}
41... h4 {[%clk 0:00:06.5]} 42. b5 {[%clk 0:00:39.5]} 42... h3 {[%clk
0:00:04.6]} 43. Re2 {[%clk 0:00:38.6]} 43... Bg2 {[%clk 0:00:02.8]} 44. Re1
{[%clk 0:00:29.6]} 44... h2 {[%clk 0:00:02.6]} 45. Kb4 {[%clk 0:00:28.1]} 45...
h1=Q {[%clk 0:00:01.9]} 46. Rxh1+ {[%clk 0:00:27.1]} 46... Bxh1 {[%clk
0:00:01.7]} 47. a4 {[%clk 0:00:26.6]} 47... f5 {[%clk 0:00:01.5]} 48. a5 {[%clk
0:00:26.2]} 48... f4 {[%clk 0:00:01.7]} 49. b6 {[%clk 0:00:25.7]} 1-0

[Event "Betsys MČR v online bleskovém šachu 2021"]
[Site "Chess.com"]
[Date "2021.04.17"]
[Round "10"]
[White "xnepom"]
[Black "Tolja1"]
[Result "1-0"]
[WhiteElo "2251"]
[BlackElo "2038"]
[TimeControl "180+1"]
[EndTime "10:41:09 PDT"]
[Termination "Uživatel xnepom zvítězil na čas"]

1. e4 {[%clk 0:03:00.9]} 1... e6 {[%clk 0:02:59.1]} 2. d4 {[%clk 0:03:00.5]}
2... d5 {[%clk 0:02:59.1]} 3. Nd2 {[%clk 0:03:01.1]} 3... a6 {[%clk 0:02:58.2]}
4. Ngf3 {[%clk 0:02:59.3]} 4... c5 {[%clk 0:02:57.8]} 5. exd5 {[%clk 0:02:59.2]}
5... exd5 {[%clk 0:02:53.6]} 6. dxc5 {[%clk 0:02:55.2]} 6... Bxc5 {[%clk
0:02:51.9]} 7. Nb3 {[%clk 0:02:55.3]} 7... Bb6 {[%clk 0:02:48.5]} 8. Be2 {[%clk
0:02:55.7]} 8... Nc6 {[%clk 0:02:47.6]} 9. O-O {[%clk 0:02:55.3]} 9... Nf6
{[%clk 0:02:43.8]} 10. Bg5 {[%clk 0:02:55]} 10... Be6 {[%clk 0:02:39.6]} 11.
Nbd4 {[%clk 0:02:54.8]} 11... O-O {[%clk 0:02:35.5]} 12. c3 {[%clk 0:02:55.2]}
12... h6 {[%clk 0:02:29.6]} 13. Bh4 {[%clk 0:02:54.9]} 13... Re8 {[%clk
0:02:23.5]} 14. Re1 {[%clk 0:02:42.1]} 14... Bg4 {[%clk 0:02:15.4]} 15. Qd3
{[%clk 0:02:27.4]} 15... Qd6 {[%clk 0:01:59.4]} 16. Nf5 {[%clk 0:02:00.2]} 16...
Bxf5 {[%clk 0:01:14.7]} 17. Qxf5 {[%clk 0:01:58.5]} 17... Ne4 {[%clk 0:01:14.1]}
18. Rad1 {[%clk 0:01:46.3]} 18... g6 {[%clk 0:01:01.3]} 19. Qxd5 {[%clk
0:01:39.8]} 19... Qxd5 {[%clk 0:00:52.6]} 20. Rxd5 {[%clk 0:01:40.4]} 20... Kg7
{[%clk 0:00:45.3]} 21. Bd3 {[%clk 0:01:26.9]} 21... Nf6 {[%clk 0:00:29.8]} 22.
Rxe8 {[%clk 0:01:14.3]} 22... Rxe8 {[%clk 0:00:28.3]} 23. Rd6 {[%clk 0:01:07.6]}
23... g5 {[%clk 0:00:27.8]} 24. Bg3 {[%clk 0:01:06]} 24... Ne4 {[%clk
0:00:27.3]} 25. Bxe4 {[%clk 0:01:03.4]} 25... Rxe4 {[%clk 0:00:26.4]} 26. Kf1
{[%clk 0:01:03.9]} 26... f5 {[%clk 0:00:24.8]} 27. Rd7+ {[%clk 0:00:57.2]} 27...
Kf6 {[%clk 0:00:23.9]} 28. Rxb7 {[%clk 0:00:53.9]} 28... Bc5 {[%clk 0:00:21.4]}
29. Rc7 {[%clk 0:00:50.8]} 29... Re6 {[%clk 0:00:20.8]} 30. Be5+ {[%clk
0:00:28.9]} 30... Nxe5 {[%clk 0:00:19.8]} 31. Rxc5 {[%clk 0:00:29]} 31... Nxf3
{[%clk 0:00:17.8]} 32. gxf3 {[%clk 0:00:29.4]} 32... Rb6 {[%clk 0:00:17.3]} 33.
b3 {[%clk 0:00:29.7]} 33... h5 {[%clk 0:00:16.7]} 34. c4 {[%clk 0:00:29.4]}
34... g4 {[%clk 0:00:16.4]} 35. fxg4 {[%clk 0:00:29.4]} 35... hxg4 {[%clk
0:00:16.5]} 36. Ke2 {[%clk 0:00:28.5]} 36... Kg5 {[%clk 0:00:16.7]} 37. Rd5
{[%clk 0:00:20.1]} 37... Kf4 {[%clk 0:00:14.5]} 38. Rd4+ {[%clk 0:00:20.1]}
38... Ke5 {[%clk 0:00:14.5]} 39. Kd3 {[%clk 0:00:18.8]} 39... Rh6 {[%clk
0:00:14.1]} 40. Rd5+ {[%clk 0:00:18.4]} 40... Kf4 {[%clk 0:00:13.7]} 41. c5
{[%clk 0:00:18.3]} 41... Rxh2 {[%clk 0:00:13.4]} 42. c6 {[%clk 0:00:18.9]} 42...
Rxf2 {[%clk 0:00:12.7]} 43. c7 {[%clk 0:00:18.7]} 43... g3 {[%clk 0:00:10.5]}
44. c8=Q {[%clk 0:00:18.1]} 44... g2 {[%clk 0:00:10.7]} 45. Qc7+ {[%clk
0:00:17.2]} 45... Kf3 {[%clk 0:00:09.6]} 46. Rxf5+ {[%clk 0:00:16.8]} 1-0

[Event "Betsys MČR v online bleskovém šachu 2021"]
[Site "Chess.com"]
[Date "2021.04.17"]
[Round "10"]
[White "nw_tynka"]
[Black "VeceraP1973"]
[Result "1-0"]
[WhiteElo "2186"]
[BlackElo "1930"]
[TimeControl "180+1"]
[EndTime "10:41:09 PDT"]
[Termination "Uživatel nw_tynka zvítězil po vzdání soupeře"]

1. e4 {[%clk 0:03:00.9]} 1... c5 {[%clk 0:02:58.9]} 2. Nf3 {[%clk 0:03:00.5]}
2... Nc6 {[%clk 0:02:58.2]} 3. d4 {[%clk 0:02:59.9]} 3... cxd4 {[%clk
0:02:58.4]} 4. Nxd4 {[%clk 0:03:00.8]} 4... Nf6 {[%clk 0:02:58.5]} 5. Nc3 {[%clk
0:03:00.4]} 5... e5 {[%clk 0:02:58.5]} 6. Ndb5 {[%clk 0:03:00]} 6... d6 {[%clk
0:02:58.6]} 7. Nd5 {[%clk 0:02:58.6]} 7... Nxd5 {[%clk 0:02:58.6]} 8. exd5
{[%clk 0:02:58.2]} 8... Nb8 {[%clk 0:02:58.6]} 9. a4 {[%clk 0:02:55.6]} 9... Be7
{[%clk 0:02:57.9]} 10. Be2 {[%clk 0:02:54.8]} 10... O-O {[%clk 0:02:57.3]} 11.
O-O {[%clk 0:02:53.3]} 11... a6 {[%clk 0:02:56.6]} 12. Na3 {[%clk 0:02:51.4]}
12... f5 {[%clk 0:02:54.3]} 13. Nc4 {[%clk 0:02:49.1]} 13... Nd7 {[%clk
0:02:52.3]} 14. f4 {[%clk 0:02:38.8]} 14... Rb8 {[%clk 0:02:47.6]} 15. Kh1
{[%clk 0:02:30]} 15... b5 {[%clk 0:02:46.1]} 16. axb5 {[%clk 0:02:23.7]} 16...
axb5 {[%clk 0:02:46.1]} 17. Na5 {[%clk 0:02:19.2]} 17... Bb7 {[%clk 0:02:07.1]}
18. Bxb5 {[%clk 0:02:11.2]} 18... Nb6 {[%clk 0:02:05.1]} 19. Nxb7 {[%clk
0:02:06.5]} 19... Rxb7 {[%clk 0:02:04.6]} 20. Bc6 {[%clk 0:02:05]} 20... Rb8
{[%clk 0:02:03.5]} 21. b3 {[%clk 0:01:49.5]} 21... Bf6 {[%clk 0:02:03.2]} 22.
Bb2 {[%clk 0:01:43.4]} 22... exf4 {[%clk 0:02:02.8]} 23. Bxf6 {[%clk 0:01:40.4]}
23... Qxf6 {[%clk 0:02:03.7]} 24. Rxf4 {[%clk 0:01:39.1]} 24... g5 {[%clk
0:02:03.7]} 25. Rf1 {[%clk 0:01:37.4]} 25... f4 {[%clk 0:02:03.1]} 26. Ra7
{[%clk 0:01:29.9]} 26... Nc8 {[%clk 0:02:00.1]} 27. Rd7 {[%clk 0:01:24.3]} 27...
Ne7 {[%clk 0:01:58.5]} 28. Qd3 {[%clk 0:01:20.7]} 28... Nf5 {[%clk 0:01:57.6]}
29. Rc7 {[%clk 0:00:59.5]} 29... Rbc8 {[%clk 0:01:56.1]} 30. Rxc8 {[%clk
0:00:56.9]} 30... Rxc8 {[%clk 0:01:55.1]} 31. b4 {[%clk 0:00:54.7]} 31... Rf8
{[%clk 0:01:47]} 32. b5 {[%clk 0:00:52.4]} 32... Ne3 {[%clk 0:01:44.8]} 33. Rg1
{[%clk 0:00:47.3]} 33... Ng4 {[%clk 0:01:43]} 34. Rf1 {[%clk 0:00:39.2]} 34...
Ne5 {[%clk 0:01:42.1]} 35. Qe4 {[%clk 0:00:34.7]} 35... g4 {[%clk 0:01:40.4]}
36. b6 {[%clk 0:00:30.3]} 36... f3 {[%clk 0:01:38.6]} 37. gxf3 {[%clk
0:00:28.3]} 37... Nxf3 {[%clk 0:01:23.8]} 38. Qe6+ {[%clk 0:00:27.8]} 38... Kg7
{[%clk 0:01:11.6]} 39. Qxf6+ {[%clk 0:00:26.5]} 39... Kxf6 {[%clk 0:01:10.5]}
40. b7 {[%clk 0:00:24.8]} 40... Rb8 {[%clk 0:01:08.8]} 41. h3 {[%clk 0:00:23.1]}
41... h5 {[%clk 0:01:07.9]} 42. hxg4 {[%clk 0:00:22.6]} 42... hxg4 {[%clk
0:01:08.1]} 43. Ra1 {[%clk 0:00:22.2]} 43... Rh8+ {[%clk 0:00:56.6]} 44. Kg2
{[%clk 0:00:20.6]} 44... Kg5 {[%clk 0:00:55.9]} 45. Rh1 {[%clk 0:00:19.8]} 45...
Rf8 {[%clk 0:00:47.5]} 46. Bd7 {[%clk 0:00:17.6]} 46... Rf7 {[%clk 0:00:42.6]}
47. Bc8 {[%clk 0:00:16.9]} 47... Nh4+ {[%clk 0:00:16.1]} 48. Rxh4 {[%clk
0:00:16.1]} 48... Kxh4 {[%clk 0:00:15.1]} 49. b8=Q {[%clk 0:00:15.8]} 1-0

[Event "Betsys MČR v online bleskovém šachu 2021"]
[Site "Chess.com"]
[Date "2021.04.17"]
[Round "10"]
[White "Classemence"]
[Black "SamikGame"]
[Result "0-1"]
[WhiteElo "1877"]
[BlackElo "1688"]
[TimeControl "180+1"]
[EndTime "10:41:10 PDT"]
[Termination "Uživatel SamikGame zvítězil na čas"]

1. e4 {[%clk 0:03:00.9]} 1... e5 {[%clk 0:02:58]} 2. Nf3 {[%clk 0:03:00.9]} 2...
Nc6 {[%clk 0:02:56.8]} 3. Bb5 {[%clk 0:03:01.2]} 3... Bc5 {[%clk 0:02:54.3]} 4.
O-O {[%clk 0:03:00.1]} 4... Qf6 {[%clk 0:02:52.8]} 5. Bxc6 {[%clk 0:02:52.2]}
5... dxc6 {[%clk 0:02:48.5]} 6. h3 {[%clk 0:02:52.9]} 6... h6 {[%clk 0:02:44.5]}
7. c3 {[%clk 0:02:38.4]} 7... Be6 {[%clk 0:02:40]} 8. d4 {[%clk 0:02:37.1]} 8...
exd4 {[%clk 0:02:36.8]} 9. cxd4 {[%clk 0:02:38]} 9... Bb6 {[%clk 0:02:33.7]} 10.
Nc3 {[%clk 0:02:35.2]} 10... O-O-O {[%clk 0:02:28.8]} 11. Be3 {[%clk 0:02:32.6]}
11... Ne7 {[%clk 0:02:23]} 12. a4 {[%clk 0:02:28.3]} 12... a5 {[%clk 0:02:19]}
13. Qe2 {[%clk 0:02:15.4]} 13... Rhe8 {[%clk 0:02:07.8]} 14. b4 {[%clk
0:02:06.8]} 14... axb4 {[%clk 0:02:04.3]} 15. a5 {[%clk 0:02:07.1]} 15... Ba7
{[%clk 0:02:01.3]} 16. a6 {[%clk 0:01:56.7]} 16... b6 {[%clk 0:01:57.2]} 17. Na4
{[%clk 0:01:44.4]} 17... Qg6 {[%clk 0:01:53.9]} 18. Bf4 {[%clk 0:01:15.1]} 18...
Bxh3 {[%clk 0:01:51.1]} 19. Nh4 {[%clk 0:01:13.9]} 19... Qg4 {[%clk 0:01:47.4]}
20. Qxg4+ {[%clk 0:01:05.7]} 20... Bxg4 {[%clk 0:01:48.3]} 21. f3 {[%clk
0:01:05.6]} 21... Be6 {[%clk 0:01:44.5]} 22. Be3 {[%clk 0:01:00.7]} 22... g5
{[%clk 0:01:40.7]} 23. Nf5 {[%clk 0:01:00.9]} 23... Bxf5 {[%clk 0:01:37.4]} 24.
exf5 {[%clk 0:01:01.8]} 24... Nxf5 {[%clk 0:01:35.1]} 25. Bf2 {[%clk 0:01:01.7]}
25... Nxd4 {[%clk 0:01:32.3]} 26. Rfd1 {[%clk 0:00:58.9]} 26... c5 {[%clk
0:01:25]} 27. Rab1 {[%clk 0:00:51.1]} 27... b5 {[%clk 0:01:13.4]} 28. Nb2 {[%clk
0:00:33.8]} 28... Ne2+ {[%clk 0:01:12.6]} 29. Kh2 {[%clk 0:00:32.2]} 29... Nc3
{[%clk 0:01:05.3]} 30. Rxd8+ {[%clk 0:00:32]} 30... Rxd8 {[%clk 0:01:03.8]} 31.
Re1 {[%clk 0:00:32.7]} 31... Rd2 {[%clk 0:00:58.5]} 32. Re8+ {[%clk 0:00:13.4]}
32... Kd7 {[%clk 0:00:52.7]} 33. Ra8 {[%clk 0:00:13.7]} 33... Rxb2 {[%clk
0:00:48.3]} 34. Bg3 {[%clk 0:00:10.2]} 34... Bb6 {[%clk 0:00:44.5]} 35. a7
{[%clk 0:00:09.9]} 35... Ra2 {[%clk 0:00:41.6]} 36. Rf8 {[%clk 0:00:05]} 36...
Bxa7 {[%clk 0:00:38.4]} 37. Rxf7+ {[%clk 0:00:02.8]} 37... Ke6 {[%clk
0:00:38.7]} 38. Rxc7 {[%clk 0:00:03]} 38... b3 {[%clk 0:00:35.6]} 39. Rc6+
{[%clk 0:00:03.3]} 39... Kd5 {[%clk 0:00:31.9]} 40. Rxh6 {[%clk 0:00:04.2]}
40... b2 {[%clk 0:00:29.1]} 41. Rg6 {[%clk 0:00:05.1]} 41... b1=Q {[%clk
0:00:21.7]} 42. Rxg5+ {[%clk 0:00:05.5]} 42... Kc4 {[%clk 0:00:17]} 43. Rg4+
{[%clk 0:00:05.7]} 43... Kb3 {[%clk 0:00:16]} 44. Rg5 {[%clk 0:00:05.3]} 44...
Qh7+ {[%clk 0:00:13.5]} 45. Kg1 {[%clk 0:00:03.5]} 45... Ra1+ {[%clk 0:00:12.9]}
0-1

[Event "Betsys MČR v online bleskovém šachu 2021"]
[Site "Chess.com"]
[Date "2021.04.17"]
[Round "10"]
[White "hever99"]
[Black "Smetanka674"]
[Result "0-1"]
[WhiteElo "1976"]
[BlackElo "1775"]
[TimeControl "180+1"]
[EndTime "10:41:14 PDT"]
[Termination "Uživatel Smetanka674 zvítězil na čas"]

1. e4 {[%clk 0:03:00.9]} 1... e6 {[%clk 0:03:00]} 2. d3 {[%clk 0:03:00.4]} 2...
d5 {[%clk 0:03:00.2]} 3. Nd2 {[%clk 0:03:00.5]} 3... Nd7 {[%clk 0:02:57.1]} 4.
Ngf3 {[%clk 0:02:59.1]} 4... dxe4 {[%clk 0:02:57]} 5. dxe4 {[%clk 0:02:58.4]}
5... Bc5 {[%clk 0:02:54.7]} 6. c3 {[%clk 0:02:47.5]} 6... Ne7 {[%clk 0:02:54.2]}
7. b4 {[%clk 0:02:44.7]} 7... Bb6 {[%clk 0:02:53.6]} 8. a4 {[%clk 0:02:45]} 8...
a5 {[%clk 0:02:53.6]} 9. Bc4 {[%clk 0:02:32.2]} 9... O-O {[%clk 0:02:50.6]} 10.
O-O {[%clk 0:02:31.6]} 10... Ng6 {[%clk 0:02:42.8]} 11. Bb3 {[%clk 0:02:22.8]}
11... Nde5 {[%clk 0:02:36.2]} 12. Nxe5 {[%clk 0:02:18.8]} 12... Nxe5 {[%clk
0:02:35.6]} 13. Qe2 {[%clk 0:02:13.4]} 13... Qe7 {[%clk 0:02:27.4]} 14. Ba3
{[%clk 0:02:10.7]} 14... axb4 {[%clk 0:02:20.3]} 15. cxb4 {[%clk 0:02:05.4]}
15... Qf6 {[%clk 0:02:19.9]} 16. Kh1 {[%clk 0:01:44.3]} 16... Rd8 {[%clk
0:02:16.7]} 17. f4 {[%clk 0:01:39.5]} 17... Nd3 {[%clk 0:02:13.8]} 18. e5 {[%clk
0:01:21.8]} 18... Qf5 {[%clk 0:02:13]} 19. g4 {[%clk 0:01:09.7]} 19... Qg6
{[%clk 0:02:04]} 20. Bc2 {[%clk 0:01:07]} 20... Nxf4 {[%clk 0:01:58.6]} 21. Bxg6
{[%clk 0:00:58.7]} 21... Nxe2 {[%clk 0:01:57.9]} 22. Bxf7+ {[%clk 0:00:57.7]}
22... Kh8 {[%clk 0:01:56.2]} 23. Ne4 {[%clk 0:00:49.5]} 23... Bd4 {[%clk
0:01:49.7]} 24. Rae1 {[%clk 0:00:43.5]} 24... Nc3 {[%clk 0:01:49.2]} 25. Nxc3
{[%clk 0:00:42.1]} 25... Bxc3 {[%clk 0:01:48.9]} 26. Re3 {[%clk 0:00:41.2]}
26... Bd4 {[%clk 0:01:30.5]} 27. Rd3 {[%clk 0:00:36.5]} 27... Rxa4 {[%clk
0:01:26.2]} 28. Rfd1 {[%clk 0:00:32.5]} 28... c5 {[%clk 0:01:17]} 29. bxc5
{[%clk 0:00:30.3]} 29... Rd5 {[%clk 0:01:07.6]} 30. Bh5 {[%clk 0:00:18]} 30...
g6 {[%clk 0:01:04.3]} 31. Bxg6 {[%clk 0:00:16.5]} 31... hxg6 {[%clk 0:01:03.9]}
32. Bc1 {[%clk 0:00:14.4]} 32... Bxe5 {[%clk 0:00:56.2]} 33. Rxd5 {[%clk
0:00:13.9]} 33... exd5 {[%clk 0:00:54.9]} 34. Rxd5 {[%clk 0:00:14.3]} 34... Ra1
{[%clk 0:00:48.8]} 35. Rxe5 {[%clk 0:00:10.3]} 35... Rxc1+ {[%clk 0:00:47.9]}
36. Kg2 {[%clk 0:00:10.5]} 36... Bxg4 {[%clk 0:00:47.2]} 37. Kg3 {[%clk
0:00:09.3]} 37... Bf5 {[%clk 0:00:46.6]} 38. Re7 {[%clk 0:00:07.8]} 38... Rxc5
{[%clk 0:00:45]} 39. Rxb7 {[%clk 0:00:07.7]} 39... Rc3+ {[%clk 0:00:45]} 40. Kf4
{[%clk 0:00:07.2]} 40... Rc4+ {[%clk 0:00:44.4]} 41. Kg5 {[%clk 0:00:07.1]}
41... Rg4+ {[%clk 0:00:43.2]} 42. Kf6 {[%clk 0:00:07.2]} 42... Re4 {[%clk
0:00:33.5]} 43. Rb8+ {[%clk 0:00:06.2]} 43... Kh7 {[%clk 0:00:33.1]} 44. Rb7+
{[%clk 0:00:05.6]} 44... Kh6 {[%clk 0:00:33.1]} 45. h4 {[%clk 0:00:02.6]} 45...
Re6+ {[%clk 0:00:32.6]} 46. Kf7 {[%clk 0:00:02.4]} 46... Kh5 {[%clk 0:00:28]}
47. Rb4 {[%clk 0:00:02.3]} 47... Re4 {[%clk 0:00:26.3]} 48. Rb6 {[%clk
0:00:01.4]} 48... Kxh4 {[%clk 0:00:25.1]} 49. Kf6 {[%clk 0:00:01.1]} 49... Re6+
{[%clk 0:00:20.3]} 0-1

[Event "Betsys MČR v online bleskovém šachu 2021"]
[Site "Chess.com"]
[Date "2021.04.17"]
[Round "10"]
[White "lockerbieQ"]
[Black "Marcus_Aurelius_CZ"]
[Result "1-0"]
[WhiteElo "1734"]
[BlackElo "1425"]
[TimeControl "180+1"]
[EndTime "10:41:14 PDT"]
[Termination "Uživatel lockerbieQ zvítězil na čas"]

1. e4 {[%clk 0:02:59.4]} 1... e6 {[%clk 0:03:00.1]} 2. d4 {[%clk 0:02:58.6]}
2... d5 {[%clk 0:03:00.6]} 3. Nd2 {[%clk 0:02:56.8]} 3... dxe4 {[%clk
0:02:58.6]} 4. Nxe4 {[%clk 0:02:56.3]} 4... Nf6 {[%clk 0:02:59.1]} 5. Nxf6+
{[%clk 0:02:53.7]} 5... Qxf6 {[%clk 0:02:57.8]} 6. Nf3 {[%clk 0:02:53.4]} 6...
Nc6 {[%clk 0:02:56.4]} 7. Be2 {[%clk 0:02:46.7]} 7... h6 {[%clk 0:02:55.7]} 8.
Be3 {[%clk 0:02:40.8]} 8... Bd6 {[%clk 0:02:55.2]} 9. O-O {[%clk 0:02:38.2]}
9... O-O {[%clk 0:02:54.2]} 10. d5 {[%clk 0:02:26.9]} 10... exd5 {[%clk
0:02:50.3]} 11. Qxd5 {[%clk 0:02:26.5]} 11... Be6 {[%clk 0:02:49.8]} 12. Qd2
{[%clk 0:02:18.7]} 12... Rad8 {[%clk 0:02:38.6]} 13. Bd3 {[%clk 0:02:04.2]}
13... Ne5 {[%clk 0:02:26.2]} 14. Nxe5 {[%clk 0:02:02.2]} 14... Bxe5 {[%clk
0:02:24.8]} 15. Qb4 {[%clk 0:01:44.9]} 15... Bd5 {[%clk 0:01:42]} 16. Bc4 {[%clk
0:01:17.3]} 16... Bxc4 {[%clk 0:01:35.7]} 17. Qxc4 {[%clk 0:01:17.1]} 17... Qd6
{[%clk 0:01:23.5]} 18. h3 {[%clk 0:01:13.4]} 18... a6 {[%clk 0:01:06.4]} 19. c3
{[%clk 0:01:13]} 19... Bf6 {[%clk 0:01:03.8]} 20. Qg4 {[%clk 0:01:08.1]} 20...
Qd7 {[%clk 0:00:57]} 21. Qg3 {[%clk 0:01:05.1]} 21... Qd6 {[%clk 0:00:45.7]} 22.
Qxd6 {[%clk 0:01:02.1]} 22... Rxd6 {[%clk 0:00:44.5]} 23. Bc5 {[%clk 0:01:02.2]}
23... Rfd8 {[%clk 0:00:39.4]} 24. Bxd6 {[%clk 0:01:02.3]} 24... Rxd6 {[%clk
0:00:38.8]} 25. Rad1 {[%clk 0:01:01]} 25... Rb6 {[%clk 0:00:38.4]} 26. Rd2
{[%clk 0:01:00.3]} 26... Bg5 {[%clk 0:00:36.8]} 27. Re2 {[%clk 0:00:59.3]} 27...
Bf6 {[%clk 0:00:30.4]} 28. Rd1 {[%clk 0:00:54.7]} 28... c6 {[%clk 0:00:23.6]}
29. Rd3 {[%clk 0:00:51]} 29... c5 {[%clk 0:00:19.5]} 30. b3 {[%clk 0:00:50.4]}
30... Rc6 {[%clk 0:00:19.3]} 31. c4 {[%clk 0:00:49.9]} 31... b6 {[%clk
0:00:18.3]} 32. Re8+ {[%clk 0:00:49.5]} 32... Kh7 {[%clk 0:00:17.5]} 33. Ra8
{[%clk 0:00:49]} 33... a5 {[%clk 0:00:16.9]} 34. Rb8 {[%clk 0:00:45.9]} 34...
Kg6 {[%clk 0:00:14.8]} 35. Rd7 {[%clk 0:00:44.4]} 35... Re6 {[%clk 0:00:12.1]}
36. Kf1 {[%clk 0:00:38.8]} 36... Bc3 {[%clk 0:00:08.7]} 37. g3 {[%clk
0:00:34.8]} 37... Re1+ {[%clk 0:00:08]} 38. Kg2 {[%clk 0:00:35]} 38... Ra1
{[%clk 0:00:08.1]} 39. Rxb6+ {[%clk 0:00:33.9]} 39... Kh7 {[%clk 0:00:04.1]} 40.
Rxf7 {[%clk 0:00:32.3]} 40... Rxa2 {[%clk 0:00:02.5]} 41. Rf5 {[%clk 0:00:25.5]}
41... Bd4 {[%clk 0:00:01.6]} 42. Ra6 {[%clk 0:00:22.3]} 42... Ra3 {[%clk
0:00:01.4]} 43. Rb6 {[%clk 0:00:21.9]} 43... Bc3 {[%clk 0:00:01.9]} 44. Rxc5
{[%clk 0:00:20]} 44... Bb4 {[%clk 0:00:02.5]} 45. Rf5 {[%clk 0:00:19.2]} 45...
Rxb3 {[%clk 0:00:02.9]} 46. Rf7 {[%clk 0:00:17.1]} 46... Rc3 {[%clk 0:00:01.7]}
47. Rbb7 {[%clk 0:00:16.8]} 47... Bc5 {[%clk 0:00:01.3]} 48. Rxg7+ {[%clk
0:00:16.6]} 1-0